Workbook

Sheet Selex24
A1: INPUT VALUES IN YELLOW
A3: 20
F5: Parameter | I5: 0
B6: Name | C6: Value | D6: Type | E6: Trans | F6: min | G6: max | I6: Input | K6: Use slider bars below to change the parameter values | Q6: slider_value (0-1000) | S6: #LO | T6: HI | U6: INIT | V6: PRIOR | W6: PR_type | X6: SD | Y6: PHASE | Z6: env-variable | AA6: use_dev | AB6: dev_minyr | AC6: dev_maxyr | AD6: dev_stddev | AE6: Block_Pattern | AF6: Block_Type
B7: PEAK | C7: =$I$5*I7 + (1-$I$5)*(F7+Q7/1000*(G7-F7)) -> 11.6226 | D7: value | E7: =C7 -> 11.6226 | F7: =B20*1.01 -> 0 | G7: =B23*0.99 -> 19.8 | I7: 13.33 | Q7: 587 | S7: =F7 -> 0 | T7: 19.8 | U7: =C7 -> 11.6226 | V7: =U7 -> 11.6226 | W7: 1 | X7: 0.05 | Y7: 2 | Z7: 0 | AA7: 0 | AB7: 0 | AC7: 0 | AD7: 0.5 | AE7: 0 | AF7: 0 | AG7: # | AH7: PEAK | AI7: value
B8: TOP | C8: 0.696 | D8: logistic | E8: =E$7+C16+(0.99*$B$23-E$7-C16)/(1+EXP(-C8)) -> 17.41208135 | F8: -5 | G8: 3 | I8: 0.704847 | Q8: 712 | S8: -5 | T8: 3 | U8: 0.696 | V8: 0.696 | W8: 1 | X8: 0.05 | Y8: 3 | Z8: 0 | AA8: 0 | AB8: 0 | AC8: 0 | AD8: 0.5 | AE8: 0 | AF8: 0 | AG8: # | AH8: TOP | AI8: logistic
B9: ASC-WIDTH | C9: 3.424 | D9: exp | E9: =EXP(C9) -> 30.69193756 | F9: -4 | G9: 12 | I9: 3.42 | Q9: 464 | S9: -4 | T9: 12 | U9: 3.424 | V9: 3.424 | W9: 1 | X9: 0.05 | Y9: 3 | Z9: 0 | AA9: 0 | AB9: 0 | AC9: 0 | AD9: 0.5 | AE9: 0 | AF9: 0 | AG9: # | AH9: WIDTH | AI9: exp
B10: DSC-WIDTH | C10: 0.208 | D10: exp | E10: =EXP(C10) -> 1.23121317 | F10: -2 | G10: 6 | I10: 0.210282 | Q10: 276 | S10: -2 | T10: 6 | U10: 0.208 | V10: 0.208 | W10: 1 | X10: 0.05 | Y10: 3 | Z10: 0 | AA10: 0 | AB10: 0 | AC10: 0 | AD10: 0.5 | AE10: 0 | AF10: 0 | AG10: # | AH10: WIDTH | AI10: exp
B11: INIT | C11: -8.9 | D11: logistic | E11: =1/(1+EXP(-C11)) -> 0.0001363703271 | F11: -15 | G11: 5 | I11: -8.9 | Q11: 305 | S11: -15 | T11: 5 | U11: -8.9 | V11: -8.9 | W11: 1 | X11: 0.05 | Y11: 2 | Z11: 0 | AA11: 0 | AB11: 0 | AC11: 0 | AD11: 0.5 | AE11: 0 | AF11: 0 | AG11: # | AH11: INIT | AI11: logistic
B12: FINAL | C12: 0.15 | D12: logistic | E12: =1/(1+EXP(-C12)) -> 0.5374298453 | F12: -5 | G12: 5 | I12: 0.1495 | Q12: 515 | S12: -5 | T12: 5 | U12: 0.15 | V12: 0.15 | W12: 1 | X12: 0.05 | Y12: 2 | Z12: 0 | AA12: 0 | AB12: 0 | AC12: 0 | AD12: 0.5 | AE12: 0 | AF12: 0 | AG12: # | AH12: FINAL | AI12: logistic
A14: BINS: | B14: min | C14: 0
B15: max | C15: 20 | H15: =IF(C11<-1000,-1000-C11,-1) -> -1
B16: BinWidth | C16: 1
B17: MidBin | C17: =IF(A3=20,0,IF(A3=24,0.5,"WRONG")) -> 0
A19: some intermediate quantities
A20: min | B20: =C14+$C$16*$C$17 -> 0 | D20: =EXP(-(($B20-$E$7)^2/$E$9)) -> 0.01226122755
A21: Peak | B21: =E7 -> 11.6226 | D21: 1
A22: Peak2 | B22: =E8 -> 17.41208135 | G22: 1 | J22: max_selex:
A23: max | B23: =C15+$C$16*$C$17 -> 20 | G23: =EXP(-(($B23-$E$8)^2/$E$10)) -> 0.004341163791 | J23: =MAX(J26:J150) -> 0.99999978
H24: 20 | I24: 20
A25: Bin | B25: Bin_Mid | C25: asc | D25: asc_scaled | F25: desc | G25: desc_scaled | H25: join1 | I25: join2 | J25: selex
A26: =C14 -> 0 | B26: =A26+$C$16*$C$17 -> 0 | C26: =EXP(-(($B26-$E$7)^2/$E$9)) -> 0.01226122755 | D26: =IF(C$11>-999,($E$11+(1-$E$11)*(C26-$D$20)/($D$21-$D$20)),C26) -> 0.0001363703271 | F26: =EXP(-(($B26-$E$8)^2/$E$10)) -> 1.140203695e-107 | G26: =IF(C$12>-999,(1+($E$12-1)*(F26-$G$22)/($G$23-$G$22)),F26) -> 0.5354129971 | H26: =1/(1+EXP(-($H$24*($B26-$E$7)/(1+ABS($B26-$E$7))))) -> 1.005153588e-08 | I26: =1/(1+EXP(-($I$24*($B26-$E$8)/(1+ABS($B26-$E$8))))) -> 6.107448736e-09 | J26: =IF(A26>$H$15,(D26*(1-H26)+H26*(1*(1-I26)+G26*I26)),0.000001) -> 0.0001363803772
A27: =IF(A26<$C$15-$C$16,A26+$C$16,$C$15) -> 1 | B27: 1 | C27: 0.02531081424 | D27: =IF(C$11>-999,($E$11+(1-$E$11)*(C27-$D$20)/($D$21-$D$20)),C27) -> 0.0133461455 | F27: 9.727859296e-96 | G27: =IF(C$12>-999,(1+($E$12-1)*(F27-$G$22)/($G$23-$G$22)),F27) -> 0.5354129971 | H27: =1/(1+EXP(-($H$24*($B27-$E$7)/(1+ABS($B27-$E$7))))) -> 1.151961451e-08 | I27: =1/(1+EXP(-($I$24*($B27-$E$8)/(1+ABS($B27-$E$8))))) -> 6.500594215e-09 | J27: =IF(A27>$H$15,(D27*(1-H27)+H27*(1*(1-I27)+G27*I27)),0.000001) -> 0.01334615687
A28: =IF(A27<$C$15-$C$16,A27+$C$16,$C$15) -> 2 | B28: 2 | C28: 0.04895285757 | D28: 0.03727840362 | F28: 1.635226996e-84 | G28: 0.5354129971 | H28: 1.354535997e-08 | I28: 6.971847897e-09 | J28: 0.03727841666
A29: 3 | B29: 3 | C29: 0.08870533652 | D29: 0.07751885889 | F29: 5.41582656e-74 | G29: 0.5354129971 | H29: 1.64727279e-08 | I29: 7.545482888e-09 | J29: 0.07751887409
A30: 4 | B30: 4 | C30: 0.1505986972 | D30: 0.1401719834 | F30: 3.534088158e-64 | G30: 0.5354129971 | H30: 2.096284988e-08 | I30: 8.256414725e-09 | J30: 0.1401720014
A31: 5 | B31: 5 | C31: 0.2395479451 | D31: 0.2302131161 | F31: 4.543765833e-55 | G31: 0.5354129971 | H31: 2.841856056e-08 | I31: 9.156451306e-09 | J31: 0.230213138
A32: 6 | B32: 6 | C32: 0.356996084 | D32: 0.3491029742 | F32: 1.151013549e-46 | G32: 0.5354129971 | H32: 4.22340912e-08 | I32: 1.032531995e-08 | J32: 0.3491030016
A33: 7 | B33: 7 | C33: 0.4984644869 | D33: 0.4923079538 | F33: 5.744746399e-39 | G33: 0.5354129971 | H33: 7.226493402e-08 | I33: 1.189115108e-08 | J33: 0.4923079904
A34: 8 | B34: 8 | C34: 0.6520858259 | D34: 0.6478150513 | F34: 5.649203494e-32 | G34: 0.5354129971 | H34: 1.559967454e-07 | I34: 1.407093553e-08 | J34: 0.6478151062
A35: 9 | B35: 9 | C35: 0.7992360518 | D35: 0.7967716004 | F35: 1.094534633e-25 | G35: 0.5354129971 | H35: 5.149974327e-07 | I35: 1.725659397e-08 | J35: 0.7967717051
A36: 10 | B36: 10 | C36: 0.9177938409 | D36: 0.91678473 | F36: 4.178281814e-20 | G36: 0.5354129971 | H36: 4.22714283e-06 | I36: 2.221568774e-08 | J36: 0.9167850817
A37: 11 | B37: 11 | C37: 0.9874496943 | D37: 0.9872956347 | F37: 3.142620078e-15 | G37: 0.5354129971 | H37: 0.0004644912255 | I37: 3.061723936e-08 | J37: 0.9873015358
A38: 12 | B38: 12 | C38: 0.995370094 | D38: 0.9953132602 | F38: 4.657061409e-11 | G38: 0.5354129971 | H38: 0.9958475251 | I38: 4.66362347e-08 | J38: 0.9999805169
A39: 13 | B39: 13 | C39: 0.9400565166 | D39: 0.9393206883 | F39: 1.359746595e-07 | G39: 0.5354130602 | H39: 0.9999907182 | I39: 8.298847193e-08 | J39: 0.9999993982
A40: 14 | B40: 14 | C40: 0.8318080292 | D40: 0.8297434108 | F40: 7.82221821e-05 | G40: 0.5354493381 | H40: 0.9999992311 | I40: 1.91765569e-07 | J40: 0.99999978
A41: 15 | B41: 15 | C41: 0.6895916905 | D41: 0.6857813142 | F41: 0.008866001603 | G41: 0.5395320262 | H41: 0.9999998012 | I41: 7.239990433e-07 | J41: 0.9999996042
A42: 16 | B42: 16 | C42: 0.5356248268 | D42: 0.5299244505 | F42: 0.1979938112 | G42: 0.6273983484 | H42: 0.999999915 | I42: 8.224328402e-06 | J42: 0.9999968957
A43: 17 | B43: 17 | C43: 0.389788611 | D43: 0.3822980415 | F43: 0.8711668825 | G43: 0.9401458081 | H43: 0.9999999526 | I43: 0.002910516184 | J43: 0.9998257641
A44: 18 | B44: 18 | C44: 0.2657647395 | D44: 0.2567517312 | F44: 0.7552261699 | G44: 0.8862812599 | H44: 0.999999969 | I44: 0.9993921026 | J44: 0.8863503697
A45: 19 | B45: 19 | C45: 0.1697717175 | D45: 0.1595803596 | F45: 0.1289967105 | G45: 0.5953431922 | H45: 0.9999999776 | I45: 0.999995318 | J45: 0.595345077
A46: 20 | B46: 20 | C46: 0.101609214 | D46: 0.09058113626 | F46: 0.004341163791 | G46: 0.5374298453 | H46: 0.9999999826 | I46: 0.9999994568 | J46: 0.5374300889
A47: 20 | B47: 20 | C47: 0.101609214 | D47: 0.09058113626 | F47: 0.004341163791 | G47: 0.5374298453 | H47: 0.9999999826 | I47: 0.9999994568 | J47: 0.5374300889
A48: 20 | B48: 20 | C48: 0.101609214 | D48: 0.09058113626 | F48: 0.004341163791 | G48: 0.5374298453 | H48: 0.9999999826 | I48: 0.9999994568 | J48: 0.5374300889
A49: 20 | B49: 20 | C49: 0.101609214 | D49: 0.09058113626 | F49: 0.004341163791 | G49: 0.5374298453 | H49: 0.9999999826 | I49: 0.9999994568 | J49: 0.5374300889
A50: 20 | B50: 20 | C50: 0.101609214 | D50: 0.09058113626 | F50: 0.004341163791 | G50: 0.5374298453 | H50: 0.9999999826 | I50: 0.9999994568 | J50: 0.5374300889
A51: 20 | B51: 20 | C51: 0.101609214 | D51: 0.09058113626 | F51: 0.004341163791 | G51: 0.5374298453 | H51: 0.9999999826 | I51: 0.9999994568 | J51: 0.5374300889
A52: 20 | B52: 20 | C52: 0.101609214 | D52: 0.09058113626 | F52: 0.004341163791 | G52: 0.5374298453 | H52: 0.9999999826 | I52: 0.9999994568 | J52: 0.5374300889
A53: 20 | B53: 20 | C53: 0.101609214 | D53: 0.09058113626 | F53: 0.004341163791 | G53: 0.5374298453 | H53: 0.9999999826 | I53: 0.9999994568 | J53: 0.5374300889
A54: 20 | B54: 20 | C54: 0.101609214 | D54: 0.09058113626 | F54: 0.004341163791 | G54: 0.5374298453 | H54: 0.9999999826 | I54: 0.9999994568 | J54: 0.5374300889
A55: 20 | B55: 20 | C55: 0.101609214 | D55: 0.09058113626 | F55: 0.004341163791 | G55: 0.5374298453 | H55: 0.9999999826 | I55: 0.9999994568 | J55: 0.5374300889
A56: 20 | B56: 20 | C56: 0.101609214 | D56: 0.09058113626 | F56: 0.004341163791 | G56: 0.5374298453 | H56: 0.9999999826 | I56: 0.9999994568 | J56: 0.5374300889
A57: 20 | B57: 20 | C57: 0.101609214 | D57: 0.09058113626 | F57: 0.004341163791 | G57: 0.5374298453 | H57: 0.9999999826 | I57: 0.9999994568 | J57: 0.5374300889
A58: 20 | B58: =A58+$C$16*$C$17 -> 20 | C58: =EXP(-(($B58-$E$7)^2/$E$9)) -> 0.101609214 | D58: 0.09058113626 | F58: =EXP(-(($B58-$E$8)^2/$E$10)) -> 0.004341163791 | G58: 0.5374298453 | H58: 0.9999999826 | I58: 0.9999994568 | J58: 0.5374300889
A59: 20 | B59: 20 | C59: 0.101609214 | D59: 0.09058113626 | F59: 0.004341163791 | G59: 0.5374298453 | H59: 0.9999999826 | I59: 0.9999994568 | J59: 0.5374300889
A60: 20 | B60: 20 | C60: 0.101609214 | D60: 0.09058113626 | F60: 0.004341163791 | G60: 0.5374298453 | H60: 0.9999999826 | I60: 0.9999994568 | J60: 0.5374300889
A61: 20 | B61: 20 | C61: 0.101609214 | D61: 0.09058113626 | F61: 0.004341163791 | G61: 0.5374298453 | H61: 0.9999999826 | I61: 0.9999994568 | J61: 0.5374300889
A62: 20 | B62: 20 | C62: 0.101609214 | D62: 0.09058113626 | F62: 0.004341163791 | G62: 0.5374298453 | H62: 0.9999999826 | I62: 0.9999994568 | J62: 0.5374300889
A63: 20 | B63: 20 | C63: 0.101609214 | D63: 0.09058113626 | F63: 0.004341163791 | G63: 0.5374298453 | H63: 0.9999999826 | I63: 0.9999994568 | J63: 0.5374300889
A64: 20 | B64: 20 | C64: 0.101609214 | D64: 0.09058113626 | F64: 0.004341163791 | G64: 0.5374298453 | H64: 0.9999999826 | I64: 0.9999994568 | J64: 0.5374300889
A65: 20 | B65: 20 | C65: 0.101609214 | D65: 0.09058113626 | F65: 0.004341163791 | G65: 0.5374298453 | H65: 0.9999999826 | I65: 0.9999994568 | J65: 0.5374300889
A66: 20 | B66: 20 | C66: 0.101609214 | D66: 0.09058113626 | F66: 0.004341163791 | G66: 0.5374298453 | H66: 0.9999999826 | I66: 0.9999994568 | J66: 0.5374300889
A67: 20 | B67: 20 | C67: 0.101609214 | D67: 0.09058113626 | F67: 0.004341163791 | G67: 0.5374298453 | H67: 0.9999999826 | I67: 0.9999994568 | J67: 0.5374300889
A68: 20 | B68: 20 | C68: 0.101609214 | D68: 0.09058113626 | F68: 0.004341163791 | G68: 0.5374298453 | H68: 0.9999999826 | I68: 0.9999994568 | J68: 0.5374300889
A69: 20 | B69: 20 | C69: 0.101609214 | D69: 0.09058113626 | F69: 0.004341163791 | G69: 0.5374298453 | H69: 0.9999999826 | I69: 0.9999994568 | J69: 0.5374300889
A70: 20 | B70: 20 | C70: 0.101609214 | D70: 0.09058113626 | F70: 0.004341163791 | G70: 0.5374298453 | H70: 0.9999999826 | I70: 0.9999994568 | J70: 0.5374300889
A71: 20 | B71: 20 | C71: 0.101609214 | D71: 0.09058113626 | F71: 0.004341163791 | G71: 0.5374298453 | H71: 0.9999999826 | I71: 0.9999994568 | J71: 0.5374300889
A72: 20 | B72: 20 | C72: 0.101609214 | D72: 0.09058113626 | F72: 0.004341163791 | G72: 0.5374298453 | H72: 0.9999999826 | I72: 0.9999994568 | J72: 0.5374300889
A73: 20 | B73: 20 | C73: 0.101609214 | D73: 0.09058113626 | F73: 0.004341163791 | G73: 0.5374298453 | H73: 0.9999999826 | I73: 0.9999994568 | J73: 0.5374300889
A74: 20 | B74: 20 | C74: 0.101609214 | D74: 0.09058113626 | F74: 0.004341163791 | G74: 0.5374298453 | H74: 0.9999999826 | I74: 0.9999994568 | J74: 0.5374300889
A75: 20 | B75: 20 | C75: 0.101609214 | D75: 0.09058113626 | F75: 0.004341163791 | G75: 0.5374298453 | H75: 0.9999999826 | I75: 0.9999994568 | J75: 0.5374300889
A76: 20 | B76: 20 | C76: 0.101609214 | D76: 0.09058113626 | F76: 0.004341163791 | G76: 0.5374298453 | H76: 0.9999999826 | I76: 0.9999994568 | J76: 0.5374300889
A77: 20 | B77: 20 | C77: 0.101609214 | D77: 0.09058113626 | F77: 0.004341163791 | G77: 0.5374298453 | H77: 0.9999999826 | I77: 0.9999994568 | J77: 0.5374300889
A78: 20 | B78: 20 | C78: 0.101609214 | D78: 0.09058113626 | F78: 0.004341163791 | G78: 0.5374298453 | H78: 0.9999999826 | I78: 0.9999994568 | J78: 0.5374300889
A79: 20 | B79: 20 | C79: 0.101609214 | D79: 0.09058113626 | F79: 0.004341163791 | G79: 0.5374298453 | H79: 0.9999999826 | I79: 0.9999994568 | J79: 0.5374300889
A80: 20 | B80: 20 | C80: 0.101609214 | D80: 0.09058113626 | F80: 0.004341163791 | G80: 0.5374298453 | H80: 0.9999999826 | I80: 0.9999994568 | J80: 0.5374300889
A81: 20 | B81: 20 | C81: 0.101609214 | D81: 0.09058113626 | F81: 0.004341163791 | G81: 0.5374298453 | H81: 0.9999999826 | I81: 0.9999994568 | J81: 0.5374300889
A82: 20 | B82: 20 | C82: 0.101609214 | D82: 0.09058113626 | F82: 0.004341163791 | G82: 0.5374298453 | H82: 0.9999999826 | I82: 0.9999994568 | J82: 0.5374300889
A83: 20 | B83: 20 | C83: 0.101609214 | D83: 0.09058113626 | F83: 0.004341163791 | G83: 0.5374298453 | H83: 0.9999999826 | I83: 0.9999994568 | J83: 0.5374300889
A84: 20 | B84: 20 | C84: 0.101609214 | D84: 0.09058113626 | F84: 0.004341163791 | G84: 0.5374298453 | H84: 0.9999999826 | I84: 0.9999994568 | J84: 0.5374300889
A85: 20 | B85: 20 | C85: 0.101609214 | D85: 0.09058113626 | F85: 0.004341163791 | G85: 0.5374298453 | H85: 0.9999999826 | I85: 0.9999994568 | J85: 0.5374300889
A86: 20 | B86: 20 | C86: 0.101609214 | D86: 0.09058113626 | F86: 0.004341163791 | G86: 0.5374298453 | H86: 0.9999999826 | I86: 0.9999994568 | J86: 0.5374300889
A87: 20 | B87: 20 | C87: 0.101609214 | D87: 0.09058113626 | F87: 0.004341163791 | G87: 0.5374298453 | H87: 0.9999999826 | I87: 0.9999994568 | J87: 0.5374300889
A88: 20 | B88: 20 | C88: 0.101609214 | D88: 0.09058113626 | F88: 0.004341163791 | G88: 0.5374298453 | H88: 0.9999999826 | I88: 0.9999994568 | J88: 0.5374300889
A89: 20 | B89: 20 | C89: 0.101609214 | D89: 0.09058113626 | F89: 0.004341163791 | G89: 0.5374298453 | H89: 0.9999999826 | I89: 0.9999994568 | J89: 0.5374300889
A90: 20 | B90: =A90+$C$16*$C$17 -> 20 | C90: =EXP(-(($B90-$E$7)^2/$E$9)) -> 0.101609214 | D90: 0.09058113626 | F90: =EXP(-(($B90-$E$8)^2/$E$10)) -> 0.004341163791 | G90: 0.5374298453 | H90: 0.9999999826 | I90: 0.9999994568 | J90: 0.5374300889
A91: 20 | B91: 20 | C91: 0.101609214 | D91: =IF(C$11>-999,($E$11+(1-$E$11)*(C91-$D$20)/($D$21-$D$20)),C91) -> 0.09058113626 | F91: 0.004341163791 | G91: =IF(C$12>-999,(1+($E$12-1)*(F91-$G$22)/($G$23-$G$22)),F91) -> 0.5374298453 | H91: =1/(1+EXP(-($H$24*($B91-$E$7)/(1+ABS($B91-$E$7))))) -> 0.9999999826 | I91: =1/(1+EXP(-($I$24*($B91-$E$8)/(1+ABS($B91-$E$8))))) -> 0.9999994568 | J91: =IF(A91>$H$15,(D91*(1-H91)+H91*(1*(1-I91)+G91*I91)),0.000001) -> 0.5374300889
A92: =IF(A91<$C$15-$C$16,A91+$C$16,$C$15) -> 20 | B92: 20 | C92: 0.101609214 | D92: 0.09058113626 | F92: 0.004341163791 | G92: 0.5374298453 | H92: 0.9999999826 | I92: 0.9999994568 | J92: 0.5374300889
A93: 20 | B93: 20 | C93: 0.101609214 | D93: 0.09058113626 | F93: 0.004341163791 | G93: 0.5374298453 | H93: 0.9999999826 | I93: 0.9999994568 | J93: 0.5374300889
A94: 20 | B94: 20 | C94: 0.101609214 | D94: 0.09058113626 | F94: 0.004341163791 | G94: 0.5374298453 | H94: 0.9999999826 | I94: 0.9999994568 | J94: 0.5374300889
A95: 20 | B95: 20 | C95: 0.101609214 | D95: 0.09058113626 | F95: 0.004341163791 | G95: 0.5374298453 | H95: 0.9999999826 | I95: 0.9999994568 | J95: 0.5374300889
A96: 20 | B96: 20 | C96: 0.101609214 | D96: 0.09058113626 | F96: 0.004341163791 | G96: 0.5374298453 | H96: 0.9999999826 | I96: 0.9999994568 | J96: 0.5374300889
A97: 20 | B97: 20 | C97: 0.101609214 | D97: 0.09058113626 | F97: 0.004341163791 | G97: 0.5374298453 | H97: 0.9999999826 | I97: 0.9999994568 | J97: 0.5374300889
A98: 20 | B98: 20 | C98: 0.101609214 | D98: 0.09058113626 | F98: 0.004341163791 | G98: 0.5374298453 | H98: 0.9999999826 | I98: 0.9999994568 | J98: 0.5374300889
A99: 20 | B99: 20 | C99: 0.101609214 | D99: 0.09058113626 | F99: 0.004341163791 | G99: 0.5374298453 | H99: 0.9999999826 | I99: 0.9999994568 | J99: 0.5374300889
A100: 20 | B100: 20 | C100: 0.101609214 | D100: 0.09058113626 | F100: 0.004341163791 | G100: 0.5374298453 | H100: 0.9999999826 | I100: 0.9999994568 | J100: 0.5374300889
A101: 20 | B101: 20 | C101: 0.101609214 | D101: 0.09058113626 | F101: 0.004341163791 | G101: 0.5374298453 | H101: 0.9999999826 | I101: 0.9999994568 | J101: 0.5374300889
A102: 20 | B102: 20 | C102: 0.101609214 | D102: 0.09058113626 | F102: 0.004341163791 | G102: 0.5374298453 | H102: 0.9999999826 | I102: 0.9999994568 | J102: 0.5374300889
A103: 20 | B103: 20 | C103: 0.101609214 | D103: 0.09058113626 | F103: 0.004341163791 | G103: 0.5374298453 | H103: 0.9999999826 | I103: 0.9999994568 | J103: 0.5374300889
A104: 20 | B104: 20 | C104: 0.101609214 | D104: 0.09058113626 | F104: 0.004341163791 | G104: 0.5374298453 | H104: 0.9999999826 | I104: 0.9999994568 | J104: 0.5374300889
A105: 20 | B105: 20 | C105: 0.101609214 | D105: 0.09058113626 | F105: 0.004341163791 | G105: 0.5374298453 | H105: 0.9999999826 | I105: 0.9999994568 | J105: 0.5374300889
A106: 20 | B106: 20 | C106: 0.101609214 | D106: 0.09058113626 | F106: 0.004341163791 | G106: 0.5374298453 | H106: 0.9999999826 | I106: 0.9999994568 | J106: 0.5374300889
A107: 20 | B107: 20 | C107: 0.101609214 | D107: 0.09058113626 | F107: 0.004341163791 | G107: 0.5374298453 | H107: 0.9999999826 | I107: 0.9999994568 | J107: 0.5374300889
A108: 20 | B108: 20 | C108: 0.101609214 | D108: 0.09058113626 | F108: 0.004341163791 | G108: 0.5374298453 | H108: 0.9999999826 | I108: 0.9999994568 | J108: 0.5374300889
A109: 20 | B109: 20 | C109: 0.101609214 | D109: 0.09058113626 | F109: 0.004341163791 | G109: 0.5374298453 | H109: 0.9999999826 | I109: 0.9999994568 | J109: 0.5374300889
A110: 20 | B110: 20 | C110: 0.101609214 | D110: 0.09058113626 | F110: 0.004341163791 | G110: 0.5374298453 | H110: 0.9999999826 | I110: 0.9999994568 | J110: 0.5374300889
A111: 20 | B111: 20 | C111: 0.101609214 | D111: 0.09058113626 | F111: 0.004341163791 | G111: 0.5374298453 | H111: 0.9999999826 | I111: 0.9999994568 | J111: 0.5374300889
A112: 20 | B112: 20 | C112: 0.101609214 | D112: 0.09058113626 | F112: 0.004341163791 | G112: 0.5374298453 | H112: 0.9999999826 | I112: 0.9999994568 | J112: 0.5374300889
A113: 20 | B113: 20 | C113: 0.101609214 | D113: 0.09058113626 | F113: 0.004341163791 | G113: 0.5374298453 | H113: 0.9999999826 | I113: 0.9999994568 | J113: 0.5374300889
A114: 20 | B114: 20 | C114: 0.101609214 | D114: 0.09058113626 | F114: 0.004341163791 | G114: 0.5374298453 | H114: 0.9999999826 | I114: 0.9999994568 | J114: 0.5374300889
A115: 20 | B115: 20 | C115: 0.101609214 | D115: 0.09058113626 | F115: 0.004341163791 | G115: 0.5374298453 | H115: 0.9999999826 | I115: 0.9999994568 | J115: 0.5374300889
A116: 20 | B116: 20 | C116: 0.101609214 | D116: 0.09058113626 | F116: 0.004341163791 | G116: 0.5374298453 | H116: 0.9999999826 | I116: 0.9999994568 | J116: 0.5374300889
A117: 20 | B117: 20 | C117: 0.101609214 | D117: 0.09058113626 | F117: 0.004341163791 | G117: 0.5374298453 | H117: 0.9999999826 | I117: 0.9999994568 | J117: 0.5374300889
A118: 20 | B118: 20 | C118: 0.101609214 | D118: 0.09058113626 | F118: 0.004341163791 | G118: 0.5374298453 | H118: 0.9999999826 | I118: 0.9999994568 | J118: 0.5374300889
A119: 20 | B119: 20 | C119: 0.101609214 | D119: 0.09058113626 | F119: 0.004341163791 | G119: 0.5374298453 | H119: 0.9999999826 | I119: 0.9999994568 | J119: 0.5374300889
A120: 20 | B120: 20 | C120: 0.101609214 | D120: 0.09058113626 | F120: 0.004341163791 | G120: 0.5374298453 | H120: 0.9999999826 | I120: 0.9999994568 | J120: 0.5374300889
A121: 20 | B121: 20 | C121: 0.101609214 | D121: 0.09058113626 | F121: 0.004341163791 | G121: 0.5374298453 | H121: 0.9999999826 | I121: 0.9999994568 | J121: 0.5374300889
A122: 20 | B122: =A122+$C$16*$C$17 -> 20 | C122: =EXP(-(($B122-$E$7)^2/$E$9)) -> 0.101609214 | D122: 0.09058113626 | F122: =EXP(-(($B122-$E$8)^2/$E$10)) -> 0.004341163791 | G122: 0.5374298453 | H122: 0.9999999826 | I122: 0.9999994568 | J122: 0.5374300889
A123: 20 | B123: 20 | C123: 0.101609214 | D123: 0.09058113626 | F123: 0.004341163791 | G123: 0.5374298453 | H123: 0.9999999826 | I123: 0.9999994568 | J123: 0.5374300889
A124: 20 | B124: 20 | C124: 0.101609214 | D124: 0.09058113626 | F124: 0.004341163791 | G124: 0.5374298453 | H124: 0.9999999826 | I124: 0.9999994568 | J124: 0.5374300889
A125: 20 | B125: 20 | C125: 0.101609214 | D125: 0.09058113626 | F125: 0.004341163791 | G125: 0.5374298453 | H125: 0.9999999826 | I125: 0.9999994568 | J125: 0.5374300889
A126: 20 | B126: 20 | C126: 0.101609214 | D126: 0.09058113626 | F126: 0.004341163791 | G126: 0.5374298453 | H126: 0.9999999826 | I126: 0.9999994568 | J126: 0.5374300889
A127: 20 | B127: 20 | C127: 0.101609214 | D127: 0.09058113626 | F127: 0.004341163791 | G127: 0.5374298453 | H127: 0.9999999826 | I127: 0.9999994568 | J127: 0.5374300889
A128: 20 | B128: 20 | C128: 0.101609214 | D128: 0.09058113626 | F128: 0.004341163791 | G128: 0.5374298453 | H128: 0.9999999826 | I128: 0.9999994568 | J128: 0.5374300889
A129: 20 | B129: 20 | C129: 0.101609214 | D129: 0.09058113626 | F129: 0.004341163791 | G129: 0.5374298453 | H129: 0.9999999826 | I129: 0.9999994568 | J129: 0.5374300889
A130: 20 | B130: 20 | C130: 0.101609214 | D130: 0.09058113626 | F130: 0.004341163791 | G130: 0.5374298453 | H130: 0.9999999826 | I130: 0.9999994568 | J130: 0.5374300889
A131: 20 | B131: 20 | C131: 0.101609214 | D131: 0.09058113626 | F131: 0.004341163791 | G131: 0.5374298453 | H131: 0.9999999826 | I131: 0.9999994568 | J131: 0.5374300889
A132: 20 | B132: 20 | C132: 0.101609214 | D132: 0.09058113626 | F132: 0.004341163791 | G132: 0.5374298453 | H132: 0.9999999826 | I132: 0.9999994568 | J132: 0.5374300889
A133: 20 | B133: 20 | C133: 0.101609214 | D133: 0.09058113626 | F133: 0.004341163791 | G133: 0.5374298453 | H133: 0.9999999826 | I133: 0.9999994568 | J133: 0.5374300889
A134: 20 | B134: 20 | C134: 0.101609214 | D134: 0.09058113626 | F134: 0.004341163791 | G134: 0.5374298453 | H134: 0.9999999826 | I134: 0.9999994568 | J134: 0.5374300889
A135: 20 | B135: 20 | C135: 0.101609214 | D135: 0.09058113626 | F135: 0.004341163791 | G135: 0.5374298453 | H135: 0.9999999826 | I135: 0.9999994568 | J135: 0.5374300889
A136: 20 | B136: 20 | C136: 0.101609214 | D136: 0.09058113626 | F136: 0.004341163791 | G136: 0.5374298453 | H136: 0.9999999826 | I136: 0.9999994568 | J136: 0.5374300889
A137: 20 | B137: 20 | C137: 0.101609214 | D137: 0.09058113626 | F137: 0.004341163791 | G137: 0.5374298453 | H137: 0.9999999826 | I137: 0.9999994568 | J137: 0.5374300889
A138: 20 | B138: 20 | C138: 0.101609214 | D138: 0.09058113626 | F138: 0.004341163791 | G138: 0.5374298453 | H138: 0.9999999826 | I138: 0.9999994568 | J138: 0.5374300889
A139: 20 | B139: 20 | C139: 0.101609214 | D139: 0.09058113626 | F139: 0.004341163791 | G139: 0.5374298453 | H139: 0.9999999826 | I139: 0.9999994568 | J139: 0.5374300889
A140: 20 | B140: 20 | C140: 0.101609214 | D140: 0.09058113626 | F140: 0.004341163791 | G140: 0.5374298453 | H140: 0.9999999826 | I140: 0.9999994568 | J140: 0.5374300889
A141: 20 | B141: 20 | C141: 0.101609214 | D141: 0.09058113626 | F141: 0.004341163791 | G141: 0.5374298453 | H141: 0.9999999826 | I141: 0.9999994568 | J141: 0.5374300889
A142: 20 | B142: 20 | C142: 0.101609214 | D142: 0.09058113626 | F142: 0.004341163791 | G142: 0.5374298453 | H142: 0.9999999826 | I142: 0.9999994568 | J142: 0.5374300889
A143: 20 | B143: 20 | C143: 0.101609214 | D143: 0.09058113626 | F143: 0.004341163791 | G143: 0.5374298453 | H143: 0.9999999826 | I143: 0.9999994568 | J143: 0.5374300889
A144: 20 | B144: 20 | C144: 0.101609214 | D144: 0.09058113626 | F144: 0.004341163791 | G144: 0.5374298453 | H144: 0.9999999826 | I144: 0.9999994568 | J144: 0.5374300889
A145: 20 | B145: 20 | C145: 0.101609214 | D145: 0.09058113626 | F145: 0.004341163791 | G145: 0.5374298453 | H145: 0.9999999826 | I145: 0.9999994568 | J145: 0.5374300889
A146: 20 | B146: 20 | C146: 0.101609214 | D146: 0.09058113626 | F146: 0.004341163791 | G146: 0.5374298453 | H146: 0.9999999826 | I146: 0.9999994568 | J146: 0.5374300889
A147: 20 | B147: 20 | C147: 0.101609214 | D147: 0.09058113626 | F147: 0.004341163791 | G147: 0.5374298453 | H147: 0.9999999826 | I147: 0.9999994568 | J147: 0.5374300889
A148: 20 | B148: 20 | C148: 0.101609214 | D148: 0.09058113626 | F148: 0.004341163791 | G148: 0.5374298453 | H148: 0.9999999826 | I148: 0.9999994568 | J148: 0.5374300889
A149: 20 | B149: 20 | C149: 0.101609214 | D149: 0.09058113626 | F149: 0.004341163791 | G149: 0.5374298453 | H149: 0.9999999826 | I149: 0.9999994568 | J149: 0.5374300889
A150: 20 | B150: 20 | C150: 0.101609214 | D150: 0.09058113626 | F150: 0.004341163791 | G150: 0.5374298453 | H150: 0.9999999826 | I150: 0.9999994568 | J150: 0.5374300889
A151: 20 | B151: 20
A152: 20
